Cogmind - Beta 13 @@@ ROGUE MODE // 2024.04.09 @ 05:50:52 Player: Zaros426 Result: Destroyed by D-53 Grenadier with Mini Grenade Launcher Performance ------------- Evolutions (0) 0 Regions Visited (2) 400 Robots Destroyed (11) 55 Value Destroyed (224) 224 Prototype IDs (0) 0 Alien Tech Used (0) 0 Bonus (0) 0 TOTAL SCORE: 679 Bonus ------- None Cogmind --------- Core Integrity 0/250 Matter 261/300 Energy 74/100 System Corruption 0% Temperature Cool (10) Movement Core (50) Location -10/Mines Parts ------- > --- POWER (1) -------- (None) > --- PROPULSION (2) --- (None) > --- UTILITY (2) ------ Signal Interpreter Improved Terrain Scanner > --- WEAPON (2) ------- (None) > --- INVENTORY (5) ---- Wheel Improved Heat Sink Sensor Array Signal Interpreter ECM Suite Peak State ------------ > --- POWER ------------ Ion Engine > --- PROPULSION ------- Wheel Wheel > --- UTILITY ---------- Small Storage Unit Improved Terrain Scanner > --- WEAPON ----------- Medium Laser Small Laser > --- INVENTORY -------- Wheel Small Laser [Rating: 9] Favorites ----------- Power Ion Engine Engine Ion Engine Propulsion Wheel Wheel Wheel Utility Signal Interpreter Device Improved Terrain Scanner Storage High-capacity Storage Unit Processor Signal Interpreter Weapon Beam Cannon Energy Gun Small Laser Energy Cannon Beam Cannon Launcher Grenade Launcher Build | -11 -10 -10 ------- Run | Yrd Mat Min Slots Evolved . | . . . Power . | . . . Propulsion . | . . . Utility . | . . . Weapon . | . . . Parts Attached 18 | 8 5 5 Power 2 | 1 1 . Engine 2 | 1 1 . Core . | . . . Reactor . | . . . Propulsion 4 | 2 . 2 Treads . | . . . Leg . | . . . Wheel 4 | 2 . 2 Hover . | . . . Flight . | . . . Utility 5 | 2 2 1 Device 2 | 1 . 1 Storage 2 | 1 1 . Processor 1 | . 1 . Hackware . | . . . Protection . | . . . Artifact . | . . . Weapon 7 | 3 2 2 Energy Gun 3 | 3 . . Energy Cannon 3 | . 2 1 Ballistic Gun . | . . . Ballistic Cannon . | . . . Launcher 1 | . . 1 Special Weapon . | . . . Impact Weapon . | . . . Slashing Weapon . | . . . Piercing Weapon . | . . . Special Melee Weapon . | . . . Unidentified Prototypes . | . . . Parts Lost 7 | . . 7 Power 1 | . . 1 Propulsion 3 | . . 3 Utility . | . . . Weapon 3 | . . 3 Highest Loss Streak 5 | . . 5 To Critical Strikes . | . . . Average Slot Usage (%) 100 | . 100 100 Engine 14 | . 14 14 Wheel 28 | . 28 28 Device 1 | . 2 . Storage 14 | . 14 14 Processor 12 | . 11 14 Energy Gun 2 | . 3 . Energy Cannon 25 | . 24 26 Naked Turns . | . . . Heaviest Build 51 | 14 51 51 Greatest Support 20 | 20 20 20 Greatest Overweight (x) 4 | . 2 4 Average Overweight (x) . | . . 2 Largest Inventory Capacity 20 | 8 20 20 Average Capacity 14 | 7 13 19 Most Carried 11 | 3 11 11 Average Carried 6 | 1 7 9 Final Capacity 20 | 8 20 5 Final Carried 11 | 3 11 5 Class Distribution -------------------- 78% | Mutant 21% | Scavenger-Mutant Dominant Class ---------------- Mutant | -10/Materials Scavenger-Mutant | -10/Mines Resources | -11 -10 -10 ----------- Run | Yrd Mat Min Matter Collected 366 | 280 50 36 Remotely . | . . . Salvage Created 409 | 61 304 44 Parts 29 | 8 21 . Haulers Intercepted . | . . . Recyclers Shooed 1 | 1 . . Parts Field Recycled . | . . . Retrieved Matter . | . . . Parts Self-Destructed . | . . . Prevented . | . . . Kills | -11 -10 -10 ------- Run | Yrd Mat Min Combat Hostiles Destroyed 17 | . 4 13 Cannons 6 | . 4 2 AOE 11 | . . 11 Classes Destroyed 5 | 1 3 1 Tunneler 3 | 3 . . Recycler 1 | . 1 . Watcher 3 | . 3 . Grunt 4 | . 4 . Assembled 13 | . . 13 Best Kill Streak 13 | 3 4 13 Combat Bots Only 13 | . 2 13 Max Kills in Single Turn 3 | 1 1 3 Gunslinging . | . . . Exploded 3 | . . 3 Melee . | . . . Uniques/NPCs Destroyed . | . . . Combat | -11 -10 -10 -------- Run | Yrd Mat Min Hostile Shots Fired 50 | . 13 37 Missed 12 | . 7 5 Damage Taken 776 | . 74 702 Core 260 | . 35 225 Absorbed by Shields . | . . . Core Remaining (%) 100 | 100 . . Volleys Fired 44 | 9 22 13 Largest 2 | 2 2 2 Hottest 120 | 90 120 120 Shots Fired 86 | 18 44 24 Gun 18 | 18 . . Cannon 62 | . 44 18 Launcher 6 | . . 6 Special . | . . . Kinetic . | . . . Thermal 80 | 18 44 18 Explosive 6 | . . 6 Electromagnetic . | . . . Robot Hit Streak 9 | 8 8 9 Robot Miss Streak 2 | 2 2 2 Penetration Max . | . . . Secondary Targets . | . . . Shots Hit Robots 46 | 12 24 10 Core Hits 38 | 3 9 26 Critical Kills . | . . . Critical Parts Destroyed . | . . . Critical Strikes . | . . . Melee Attacks . | . . . Impact . | . . . Slashing . | . . . Piercing . | . . . Sneak Attacks . | . . . Combat Hostiles . | . . . Follow-up Attacks . | . . . Damage Inflicted 1299 | 152 422 725 Guns 152 | 152 . . Cannons 562 | . 422 140 Explosions 585 | . . 585 Melee . | . . . Ramming . | . . . Kinetic . | . . . Thermal 714 | 152 422 140 Explosive 585 | . . 585 Electromagnetic . | . . . Impact . | . . . Slashing . | . . . Piercing . | . . . Highest Corruption . | . . . Average Corruption . | . . . Corruption Purged . | . . . Corruption Blocked . | . . . Overload Shots . | . . . Overflow Damage 6 | . . 6 Projectiles 6 | . . 6 Explosions . | . . . Melee . | . . . Knockbacks . | . . . Impact . | . . . Kinetic . | . . . Secondary . | . . . Self-Inflicted Damage 20 | . . 20 Shots 2 | . . 2 Rammed . | . . . Targets Rammed . | . . . Kicked . | . . . Crushed . | . . . Highest Temperature 417 | 210 417 395 Average Temperature 157 | 91 148 208 Received Heat Transfer 302 | . 42 260 Effects 3 | . 1 2 Shutdowns 1 | . . 1 Energy Bleed 1 | . . 1 Short Circuit 1 | . 1 . Siege Activations . | . . . Robots Corrupted . | . . . Combat Hostiles . | . . . Parts Fried . | . . . Impact Corruptions . | . . . Robots Melted . | . . . Combat Hostiles . | . . . Parts Melted 4 | 1 3 . Heat Transferred 1593 | 409 888 296 Parts Sabotaged . | . . . Parts Stolen . | . . . Parts Stripped . | . . . Power Chain Reactions . | . . . Alert | -11 -10 -10 ------- Run | Yrd Mat Min Peak Influence 227 | 15 227 118 Initial 88 | . 9 88 Average 91 | 5 111 96 Maximum Alert Level 1 | . 1 . Low Security (%) 83 | 100 71 100 Level 1 16 | . 28 . Level 2 . | . . . Level 3 . | . . . Level 4 . | . . . Level 5 . | . . . High Security . | . . . Max Security . | . . . Squads Dispatched 1 | . 1 . Investigation . | . . . Extermination . | . . . Reinforcement 1 | . 1 . Assault . | . . . Garrison . | . . . Intercept . | . . . Searches Triggered . | . . . Construction Impeded . | . . . Haulers Reinforced . | . . . Active Scanning Responses . | . . . Cargo Convoy Interrupts . | . . . Stealth | -11 -10 -10 --------- Run | Yrd Mat Min Distress Signals 1 | . . 1 Communications Jammed . | . . . Distress Signals . | . . . Times Spotted 26 | . 11 15 Peak Tracking Total 7 | . 3 7 Tactical Retreats 1 | . 1 . Traps | -11 -10 -10 ------- Run | Yrd Mat Min Traps Triggered . | . . . Indirectly . | . . . Trap Hack Attempts . | . . . Triggered . | . . . Disarmed . | . . . Reprogrammed . | . . . Reused . | . . . Traps Extracted . | . . . Installed . | . . . Triggered . | . . . Machines | -11 -10 -10 ---------- Run | Yrd Mat Min Machines Disabled . | . . . Max in Single Turn . | . . . Machines Repaired . | . . . Machines Dismantled . | . . . Machines Sabotaged . | . . . Overloaded Fab Kills . | . . . Hacking | -11 -10 -10 --------- Run | Yrd Mat Min Machines Accessed 5 | . 5 . Terminals 3 | . 3 . Fabricators . | . . . Repair Stations . | . . . Recycling Units 2 | . 2 . Scanalyzers . | . . . Garrison Access . | . . . Total Hacks 8 | . 8 . Successful 4 | . 4 . Failed 4 | . 4 . Catastrophic 1 | . 1 . Database Lockouts . | . . . Manual . | . . . Terminals 3 | . 3 . Fabricators . | . . . Repair Stations . | . . . Recycling Units 5 | . 5 . Scanalyzers . | . . . Garrison Access . | . . . Terminal Hacks 1 | . 1 . Locate Traps 1 | . 1 . Fabricator Hacks . | . . . Repair Station Hacks . | . . . Recycling Unit Hacks 3 | . 3 . Report Inventory 2 | . 2 . Retrieve Components 1 | . 1 . Scanalyzer . | . . . Garrison Access Hacks . | . . . Unauthorized Hacks . | . . . Terminals . | . . . Fabricators . | . . . Repair Stations . | . . . Recycling Units . | . . . Scanalyzers . | . . . Garrison Access . | . . . Data Cores Recovered . | . . . Used . | . . . Hacking Detections 3 | . 3 . Full Trace Events . | . . . Feedback Events . | . . . Feedback Blocked . | . . . Robot Schematics Acquired . | . . . Robots Built . | . . . Authchips . | . . . Time . | . . . Total Robot Build Rating . | . . . Part Schematics Acquired . | . . . Parts Built . | . . . Authchips . | . . . Time . | . . . Total Part Build Rating . | . . . Parts Repaired . | . . . Time . | . . . Parts Recycled . | . . . Recycled Matter . | . . . Retrieved Matter . | . . . Retrieved Components 3 | . 3 . Parts Scanalyzed . | . . . Part Schematics Acquired . | . . . Parts Damaged . | . . . Bothacking | -11 -10 -10 ------------ Run | Yrd Mat Min Used RIF Installer . | . . . Robots Hacked . | . . . Non-combat . | . . . Combat . | . . . Robot Hacks Applied . | . . . Relay Couplers Released . | . . . Fabnet Peak Effective % . | . . . Robots Rewired . | . . . Allies Hacked . | . . . Hacks Repelled . | . . . Allies | -11 -10 -10 -------- Run | Yrd Mat Min Total Allies . | . . . Largest Group . | . . . Highest-Rated Group . | . . . Highest-Rated Ally . | . . . Total Orders . | . . . Ally Attacks . | . . . Total Damage . | . . . Kills . | . . . Allies Corrupted . | . . . Allies Melted . | . . . Intel | -11 -10 -10 ------- Run | Yrd Mat Min Robot Analysis Total . | . . . Derelict Logs Recovered . | . . . Drone Launches . | . . . Drone Recoveries . | . . . Exploration | -11 -10 -10 ------------- Run | Yrd Mat Min Turns Passed 595 | 88 344 163 Spaces Moved 390 | 56 255 79 Core 4 | 3 . 1 Treads . | . . . Legs . | . . . Wheels 386 | 53 255 78 Hover . | . . . Flight . | . . . Fastest Speed 50 | 50 80 50 Average Speed 93 | 78 91 110 Slowest Speed 140 | 80 110 140 Overloaded Moves . | . . . Propulsion Burnouts . | . . . Robots Hopped . | . . . Cave-ins Triggered . | . . . Exploration Rate (%) 20 | 4 37 21 Regions Visited 2 Branch Regions 1 Pre-discovered Areas . | . . . Known Exits Taken 1 | . 1 . Unknown Exits Taken 1 | 1 . . Scrap Searched . | . . . Spaces Dug 17 | . . 17 Terrain Destroyed 45 | . . 45 Melee . | . . . Projectile . | . . . AOE 45 | . . 45 Terrain Rammed . | . . . Walls Destroyed . | . . . Machines Disabled . | . . . Actions | -11 -10 -10 --------- Run | Yrd Mat Min Total 530 | 77 321 132 Wait 59 | 2 26 31 Move 388 | 55 254 79 Hop . | . . . Pick Up 14 | 3 10 1 Fast Attach 9 | 7 1 1 Attach 2 | . . 2 Detach . | . . . Swap 7 | 1 4 2 Drop 7 | . 4 3 Fire 44 | 9 22 13 Melee . | . . . Ram . | . . . Kick . | . . . Crush . | . . . Escape Stasis . | . . . Rewire . | . . . Trap . | . . . Miscellaneous . | . . . Route ------- -11/Scrapyard -10/Materials (discovered 2 exits: *Mat / *Min) -10/Mines (discovered 1 exit: *Mat) History --------- Turn | Location | Event 18 | -11/Scrapyard | Discovered new exit (range 15) 89 | -11/Scrapyard | Entered Materials 308 | -10/Materials | Build established: Mutant 369 | -10/Materials | Discovered new exit (range 3) 372 | -10/Materials | Identified exit to Materials 428 | -10/Materials | Discovered new exit (range 6) 432 | -10/Materials | Identified exit to Mines 433 | -10/Materials | Entered Mines 455 | -10/Mines | Discovered exit to Materials (range 15) 467 | -10/Mines | Assembled infested the area 542 | -10/Mines | Destroyed 13 combat bots 584 | -10/Mines | Core integrity fell below 50% 588 | -10/Mines | Core integrity fell below 20% 596 | -10/Mines | Destroyed by D-53 Grenadier with Mini Grenade Launcher Last Messages --------------- 00529_ Dropped Visual Processing Unit. 00536_ Acquired 10 matter. 00539_ Acquired 3 matter. 00542_ Acquired 11 matter. 00543_ Acquired 12 matter. 00547_ Acquired Wheel. 00566_ T-07 Excavator sends out distress signal. 00568_ T-07 Excavator destroyed. 00586_ The unstable cave ceiling collapses. 00586_ Destroyed Shock Absorption System. 00590_ Ion Engine destroyed. 00590_ Beam Cannon destroyed. 00590_ Wheel destroyed. 00590_ D-53 Grenadier destroyed. 00591_ The unstable cave ceiling collapses. 00594_ Beam Cannon destroyed. 00594_ Wheel destroyed. 00595_ Dropped Hcp. Storage Unit. 00596_ The unstable cave ceiling collapses. 00596_ Acquired Imp. Terrain Scanner. Map ----- +----------------------------------------------------+ | | | | | | | | | | | | | | | | | | | | | ?????????????????????????????????????????????????? | | ?????????????????????????????????????????????????? | | ?????????????????????????????????????????????????? | | ?????####??????????####??????????????????????????? | | ???### ##????????## ##?????????????????????????? | | ??## ##???????#![ ##????????????????????????? | | ### ##??????# #????????????????????????? | | ## """ ##???#### #????????????????????????? | | """ ###### # ###??????????????????????? | | """ ! #######??????????????????? | | =< # # ###????????????????? | | ## # # ##?###???????????? | | #### ####! ## ##??????????? | | ###??###### ##?# =# ## ##?????????? | | ##?????????####??## !! ?????? | | #?????????????????## @ < #???????????? | | #????????????????### ##???????????? | | #?????????????????# d ##????????????? | | ##?????????????????#### ### ##?????? | | ##?????????????????????## #?????? | | #???????????????????????## #????? | | ?????????????????????????#### #???? | | ????????????????????????????# ??? | | ????????????????????????????#### ???? | | ??????????????????????????????#### ???? | | ?????????????????????????????????# ????? | | ?????????????????????????????????? | ????? | | ??????????????????????????????????? ????? | | ??????????????????????????????????? % ?????? | | ???????????????????????????????????? ## ?????? | | ???????????????????????????????????? #?? ??????? | | ????????????????????????????????????? #??? ??????? | | ?????????????????????????????????????##??????????? | | ?????????????????????????????????????????????????? | | ?????????????????????????????????????????????????? | | ?????????????????????????????????????????????????? | | ?????????????????????????????????????????????????? | | ?????????????????????????????????????????????????? | | ?????????????????????????????????????????????????? | | ?????????????????????????????????????????????????? | +----------------------------------------------------+ Best States ------------- Heat Dissipation 25 Energy Generation 10 Energy Capacity 250 Matter Stores 300 Matter Capacity 300 Sight Range 16 Terrain Scan Range 16 Terrain Scan Density 10 Evasion (%) 44 Item Schematics ----------------- None Robot Schematics ------------------ None Fabricated ------------ Nothing Alien Tech Used ----------------- None Achievements -------------- None Challenges ------------ None Game ------ Seed SwordPortableRailgun Manual? 0 Play Time 00:12:45 Cumulative 27.9 hours Start 2024.04.09 @ 05:39:24 End 2024.04.09 @ 05:50:52 Sessions 1 Manual Loads 0 Difficulty Rogue Special Mode None Game No. 27 Rogue 27 Adventurer 0 Explorer 0 Win Type - Total 0 Types 0/0/0/0/0/0/0/0/0 Lore% 23 Gallery% 29 Achievement% 22 Wizard Run 0 Options --------- Layout 0 ASCII 0 Keyboard 0 Movement Mouse Keybinds 0 Fullscreen 1 Font 24/Smallcaps Map View 183x50 Zoom Use 0% Tactical HUD 1 Map Filters NONE Filters NONE Steam 0 RUN: 3859d942-797e-421e-88e3-155deb34a335